[Event "Early-Titled-Tuesday-Blitz-January-30-2024"]
[Site "Chess.com"]
[Date "2024.01.30"]
[Round "4"]
[White "Bushonica"]
[Black "familijatop71"]
[Result "0-1"]
[WhiteElo "1804"]
[BlackElo "2258"]
[TimeControl "180+1"]
[EndTime "8:40:41 PST"]
[Termination "familijatop71 won by resignation"]

1. e4 {[%clk 0:02:59.6]} 1... e6 {[%clk 0:02:59.8]} 2. d4 {[%clk 0:02:58.5]}
2... d5 {[%clk 0:03:00]} 3. exd5 {[%clk 0:02:56.3]} 3... exd5 {[%clk 0:02:59.8]}
4. Bd3 {[%clk 0:02:54.1]} 4... Nf6 {[%clk 0:02:58.4]} 5. Nf3 {[%clk 0:02:51.6]}
5... Bd6 {[%clk 0:02:55.5]} 6. c3 {[%clk 0:02:51.6]} 6... O-O {[%clk 0:02:54.4]}
7. O-O {[%clk 0:02:51]} 7... Bg4 {[%clk 0:02:51.6]} 8. h3 {[%clk 0:02:49]} 8...
Bh5 {[%clk 0:02:48.6]} 9. Bg5 {[%clk 0:02:47.6]} 9... h6 {[%clk 0:02:44.6]} 10.
Bh4 {[%clk 0:02:38.6]} 10... Nbd7 {[%clk 0:02:24.9]} 11. Nbd2 {[%clk 0:02:38.1]}
11... Bf4 {[%clk 0:02:14.4]} 12. Qc2 {[%clk 0:02:31]} 12... c6 {[%clk 0:02:08]}
13. Rae1 {[%clk 0:02:29]} 13... Re8 {[%clk 0:01:59.9]} 14. Bxf6 {[%clk
0:02:15.5]} 14... Nxf6 {[%clk 0:01:57.2]} 15. Ne5 {[%clk 0:02:09.4]} 15... Bxe5
{[%clk 0:01:42.3]} 16. dxe5 {[%clk 0:02:04.6]} 16... Ne4 {[%clk 0:01:31.9]} 17.
Bxe4 {[%clk 0:02:00.3]} 17... dxe4 {[%clk 0:01:30.6]} 18. Nxe4 {[%clk
0:01:58.1]} 18... Rxe5 {[%clk 0:01:23.9]} 19. f4 {[%clk 0:01:42.2]} 19... Rd5
{[%clk 0:01:16.5]} 20. c4 {[%clk 0:01:39.2]} 20... Rd4 {[%clk 0:01:11.2]} 21. g4
{[%clk 0:01:32.9]} 21... Bg6 {[%clk 0:01:11]} 22. f5 {[%clk 0:01:30.8]} 22...
Bh7 {[%clk 0:01:08.3]} 23. b3 {[%clk 0:01:30.3]} 23... Qc7 {[%clk 0:01:05.5]}
24. Qf2 {[%clk 0:01:29.3]} 24... c5 {[%clk 0:00:59.6]} 25. f6 {[%clk 0:01:26.4]}
25... Rxe4 {[%clk 0:00:52.9]} 26. fxg7 {[%clk 0:01:24.7]} 26... Rxe1 {[%clk
0:00:51.5]} 27. Rxe1 {[%clk 0:01:24.8]} 27... Kxg7 {[%clk 0:00:40.3]} 28. Qb2+
{[%clk 0:01:23.7]} 28... Kg8 {[%clk 0:00:36.5]} 29. Qf2 {[%clk 0:01:13.4]} 29...
Rd8 {[%clk 0:00:33.1]} 30. h4 {[%clk 0:01:10.9]} 30... Rd4 {[%clk 0:00:31.8]}
31. Re8+ {[%clk 0:01:03.5]} 31... Kg7 {[%clk 0:00:31.7]} 32. Qf3 {[%clk
0:01:01.2]} 32... Qd7 {[%clk 0:00:25]} 33. Re1 {[%clk 0:00:57.6]} 33... Rxg4+
{[%clk 0:00:21.4]} 34. Kf1 {[%clk 0:00:49.3]} 34... Rd4 {[%clk 0:00:16.2]} 35.
Kg2 {[%clk 0:00:47.7]} 35... Rd2+ {[%clk 0:00:15.3]} 36. Kg3 {[%clk 0:00:45.5]}
36... Rd3 {[%clk 0:00:15.4]} 37. Re3 {[%clk 0:00:44.9]} 37... Rxe3 {[%clk
0:00:14]} 38. Qxe3 {[%clk 0:00:43.8]} 38... Qd6+ {[%clk 0:00:14.1]} 39. Kg2
{[%clk 0:00:43.4]} 39... Qg6+ {[%clk 0:00:12.8]} 40. Kh3 {[%clk 0:00:42.5]}
40... Qd3 {[%clk 0:00:12.7]} 41. Qxd3 {[%clk 0:00:38]} 41... Bxd3 {[%clk
0:00:13.6]} 0-1

[Event "Early-Titled-Tuesday-Blitz-January-30-2024"]
[Site "Chess.com"]
[Date "2024.01.30"]
[Round "4"]
[White "DreamsAreFake"]
[Black "soloderisas"]
[Result "1-0"]
[WhiteElo "2727"]
[BlackElo "2523"]
[TimeControl "180+1"]
[EndTime "8:40:42 PST"]
[Termination "DreamsAreFake won by resignation"]

1. Nf3 {[%clk 0:03:00.9]} 1... d5 {[%clk 0:02:59.8]} 2. g3 {[%clk 0:02:59.4]}
2... Nf6 {[%clk 0:02:59.2]} 3. Bg2 {[%clk 0:02:58.4]} 3... Bf5 {[%clk
0:02:59.8]} 4. O-O {[%clk 0:02:58.2]} 4... e6 {[%clk 0:03:00.4]} 5. d3 {[%clk
0:02:56.8]} 5... Be7 {[%clk 0:03:00.2]} 6. c4 {[%clk 0:02:57.5]} 6... c6 {[%clk
0:02:59.9]} 7. cxd5 {[%clk 0:02:58]} 7... exd5 {[%clk 0:02:59.5]} 8. Nc3 {[%clk
0:02:58.7]} 8... O-O {[%clk 0:02:59.1]} 9. Nd4 {[%clk 0:02:58.5]} 9... Bg6
{[%clk 0:02:58]} 10. e4 {[%clk 0:02:59.2]} 10... dxe4 {[%clk 0:02:56.7]} 11.
dxe4 {[%clk 0:03:00.1]} 11... Nfd7 {[%clk 0:02:50.2]} 12. f4 {[%clk 0:02:54.3]}
12... Bc5 {[%clk 0:02:37.4]} 13. Be3 {[%clk 0:02:49.7]} 13... Nb6 {[%clk
0:02:32.6]} 14. Nc2 {[%clk 0:02:26]} 14... Bxe3+ {[%clk 0:02:07.8]} 15. Nxe3
{[%clk 0:02:26.9]} 15... f6 {[%clk 0:01:58.2]} 16. e5 {[%clk 0:02:04.9]} 16...
fxe5 {[%clk 0:01:48.8]} 17. f5 {[%clk 0:02:00.9]} 17... Bf7 {[%clk 0:01:46.2]}
18. f6 {[%clk 0:01:58.2]} 18... gxf6 {[%clk 0:01:41.3]} 19. Qg4+ {[%clk
0:01:51.1]} 19... Kh8 {[%clk 0:01:35.7]} 20. Rad1 {[%clk 0:01:51.5]} 20... N8d7
{[%clk 0:01:35.6]} 21. Ne4 {[%clk 0:01:47.6]} 21... Bg6 {[%clk 0:01:27.9]} 22.
Nc5 {[%clk 0:01:17.4]} 22... Nxc5 {[%clk 0:01:26.8]} 23. Rxd8 {[%clk 0:01:17.3]}
23... Raxd8 {[%clk 0:01:27.7]} 24. h4 {[%clk 0:01:17.7]} 24... Nd5 {[%clk
0:01:24.9]} 25. Nxd5 {[%clk 0:01:11.5]} 25... cxd5 {[%clk 0:01:25.8]} 26. h5
{[%clk 0:01:12.1]} 26... Bd3 {[%clk 0:01:24.3]} 27. h6 {[%clk 0:01:06.8]} 27...
Rg8 {[%clk 0:01:16.1]} 28. Qh4 {[%clk 0:01:06.8]} 28... Rg5 {[%clk 0:00:38.8]}
29. Rxf6 {[%clk 0:01:00]} 29... Rdg8 {[%clk 0:00:39.2]} 30. Bxd5 {[%clk
0:00:49.4]} 30... Rxg3+ {[%clk 0:00:38.8]} 31. Kh2 {[%clk 0:00:40.6]} 31... Be4
{[%clk 0:00:16.7]} 32. Qxg3 {[%clk 0:00:31.5]} 32... Bxd5 {[%clk 0:00:13.9]} 33.
Qxe5 {[%clk 0:00:28]} 33... Rg2+ {[%clk 0:00:08.5]} 34. Kh3 {[%clk 0:00:27.4]}
1-0

[Event "Early-Titled-Tuesday-Blitz-January-30-2024"]
[Site "Chess.com"]
[Date "2024.01.30"]
[Round "4"]
[White "MFatigue"]
[Black "Hasangatin_Ramil"]
[Result "0-1"]
[WhiteElo "2467"]
[BlackElo "2700"]
[TimeControl "180+1"]
[EndTime "8:40:42 PST"]
[Termination "Hasangatin_Ramil won by resignation"]

1. e4 {[%clk 0:02:54]} 1... d5 {[%clk 0:03:00.3]} 2. exd5 {[%clk 0:02:53.5]}
2... Qxd5 {[%clk 0:03:01.2]} 3. Nc3 {[%clk 0:02:53.4]} 3... Qd6 {[%clk
0:03:01.8]} 4. d4 {[%clk 0:02:53.7]} 4... Nf6 {[%clk 0:03:02.3]} 5. Nf3 {[%clk
0:02:54.1]} 5... c6 {[%clk 0:03:02.9]} 6. Ne5 {[%clk 0:02:45.5]} 6... Nbd7
{[%clk 0:03:03.4]} 7. f4 {[%clk 0:02:45]} 7... Nb6 {[%clk 0:02:59.6]} 8. Be3
{[%clk 0:02:41.5]} 8... g6 {[%clk 0:02:59.6]} 9. Be2 {[%clk 0:02:36.5]} 9... Bg7
{[%clk 0:02:59.4]} 10. O-O {[%clk 0:02:37.1]} 10... Nbd5 {[%clk 0:02:56.6]} 11.
Nxd5 {[%clk 0:02:29.1]} 11... cxd5 {[%clk 0:02:56.6]} 12. c4 {[%clk 0:02:21.7]}
12... dxc4 {[%clk 0:02:54]} 13. Bxc4 {[%clk 0:02:10.5]} 13... O-O {[%clk
0:02:53.6]} 14. Qb3 {[%clk 0:02:07]} 14... e6 {[%clk 0:02:51.4]} 15. Rad1 {[%clk
0:02:02.3]} 15... Nd5 {[%clk 0:02:51.1]} 16. Bc1 {[%clk 0:01:59.6]} 16... Nb6
{[%clk 0:02:44.5]} 17. Be2 {[%clk 0:01:42.7]} 17... Bd7 {[%clk 0:02:44.1]} 18.
Bf3 {[%clk 0:01:37.2]} 18... Bc6 {[%clk 0:02:44.2]} 19. Bxc6 {[%clk 0:01:08.7]}
19... bxc6 {[%clk 0:02:45.1]} 20. Nc4 {[%clk 0:01:08.9]} 20... Qd5 {[%clk
0:02:41.6]} 21. Nxb6 {[%clk 0:01:05.9]} 21... axb6 {[%clk 0:02:26.2]} 22. Qxd5
{[%clk 0:01:05]} 22... cxd5 {[%clk 0:02:20.3]} 23. a3 {[%clk 0:01:05.9]} 23...
Rfc8 {[%clk 0:02:16]} 24. Rf2 {[%clk 0:01:06.1]} 24... Bxd4 {[%clk 0:01:58]} 25.
Rxd4 {[%clk 0:01:03.7]} 25... Rxc1+ {[%clk 0:01:58.5]} 26. Rf1 {[%clk
0:01:04.6]} 26... Rac8 {[%clk 0:01:40.2]} 27. Rb4 {[%clk 0:01:03.2]} 27... R1c6
{[%clk 0:01:35.6]} 28. Rf3 {[%clk 0:01:00.9]} 28... Kg7 {[%clk 0:01:17.8]} 29.
Rfb3 {[%clk 0:01:00.5]} 29... Rb8 {[%clk 0:01:18]} 30. a4 {[%clk 0:01:00.2]}
30... Ra8 {[%clk 0:01:18.2]} 31. Kf2 {[%clk 0:00:58.9]} 31... Kf6 {[%clk
0:01:16.9]} 32. g4 {[%clk 0:00:58.2]} 32... h5 {[%clk 0:01:16.5]} 33. h3 {[%clk
0:00:58.8]} 33... Rc1 {[%clk 0:01:09]} 34. Rd4 {[%clk 0:00:39.1]} 34... Ra6
{[%clk 0:01:06.3]} 35. Rb5 {[%clk 0:00:31.1]} 35... hxg4 {[%clk 0:01:01.6]} 36.
hxg4 {[%clk 0:00:31.3]} 36... Rc5 {[%clk 0:00:59.6]} 37. Rbb4 {[%clk 0:00:20.5]}
37... Ke7 {[%clk 0:00:54.4]} 38. b3 {[%clk 0:00:18.2]} 38... Kd6 {[%clk
0:00:54.3]} 39. Rd2 {[%clk 0:00:17.4]} 39... Kc6 {[%clk 0:00:54.6]} 40. Ke3
{[%clk 0:00:17.7]} 40... Ra8 {[%clk 0:00:53.9]} 41. Rbd4 {[%clk 0:00:16.4]}
41... Rh8 {[%clk 0:00:52.1]} 42. f5 {[%clk 0:00:16.1]} 42... e5 {[%clk
0:00:44.9]} 43. Rb4 {[%clk 0:00:16]} 43... Rh3+ {[%clk 0:00:43.9]} 44. Kf2
{[%clk 0:00:16.5]} 44... Rh2+ {[%clk 0:00:42.1]} 45. Ke1 {[%clk 0:00:13.9]}
45... Rc1+ {[%clk 0:00:40.5]} 0-1

[Event "Early-Titled-Tuesday-Blitz-January-30-2024"]
[Site "Chess.com"]
[Date "2024.01.30"]
[Round "4"]
[White "profedechess93"]
[Black "andrzej"]
[Result "0-1"]
[WhiteElo "2618"]
[BlackElo "2437"]
[TimeControl "180+1"]
[EndTime "8:40:43 PST"]
[Termination "andrzej won by resignation"]

1. e4 {[%clk 0:03:00.9]} 1... e5 {[%clk 0:02:59.9]} 2. Nf3 {[%clk 0:03:01.2]}
2... Nf6 {[%clk 0:03:00.1]} 3. d4 {[%clk 0:03:00]} 3... Nxe4 {[%clk 0:03:00]} 4.
dxe5 {[%clk 0:02:59.6]} 4... d5 {[%clk 0:03:00.4]} 5. Nbd2 {[%clk 0:02:58.5]}
5... Qd7 {[%clk 0:03:00.6]} 6. Bd3 {[%clk 0:01:40.8]} 6... Nc5 {[%clk
0:02:59.3]} 7. Be2 {[%clk 0:01:37.5]} 7... Be7 {[%clk 0:02:57.7]} 8. Nb3 {[%clk
0:01:36.5]} 8... Ne6 {[%clk 0:02:50.8]} 9. Nfd4 {[%clk 0:01:30.3]} 9... c5
{[%clk 0:02:43.7]} 10. Nf5 {[%clk 0:01:23.7]} 10... Bf8 {[%clk 0:02:31.1]} 11.
Bf3 {[%clk 0:01:19.6]} 11... d4 {[%clk 0:02:27.6]} 12. O-O {[%clk 0:01:19.7]}
12... Nc6 {[%clk 0:02:27.1]} 13. Re1 {[%clk 0:01:19.5]} 13... g6 {[%clk
0:02:25.8]} 14. Nh6 {[%clk 0:01:19.4]} 14... Bxh6 {[%clk 0:02:23.8]} 15. Bxh6
{[%clk 0:01:20.3]} 15... Qe7 {[%clk 0:02:23.2]} 16. Qd2 {[%clk 0:01:17.6]} 16...
c4 {[%clk 0:02:19.7]} 17. Bxc6+ {[%clk 0:01:16]} 17... bxc6 {[%clk 0:02:19.9]}
18. Nxd4 {[%clk 0:01:16.9]} 18... Bb7 {[%clk 0:02:07]} 19. Nxe6 {[%clk
0:01:12.7]} 19... Qxe6 {[%clk 0:02:01.1]} 20. Qb4 {[%clk 0:01:12.8]} 20... O-O-O
{[%clk 0:01:58.3]} 21. Be3 {[%clk 0:01:04.6]} 21... Qd5 {[%clk 0:01:29.7]} 22.
Bxa7 {[%clk 0:01:00.7]} 22... Rhe8 {[%clk 0:01:02.7]} 23. Qc5 {[%clk 0:00:44.1]}
23... Qxc5 {[%clk 0:00:54.6]} 24. Bxc5 {[%clk 0:00:43.7]} 24... Rd5 {[%clk
0:00:55.5]} 25. Bd6 {[%clk 0:00:40.1]} 25... f6 {[%clk 0:00:52.5]} 26. f4 {[%clk
0:00:40.1]} 26... fxe5 {[%clk 0:00:52.3]} 27. fxe5 {[%clk 0:00:41]} 27... Rd2
{[%clk 0:00:52.1]} 28. Rac1 {[%clk 0:00:38.5]} 28... c5 {[%clk 0:00:51.1]} 29.
Re3 {[%clk 0:00:14.7]} 29... Rxg2+ {[%clk 0:00:50.3]} 30. Kf1 {[%clk 0:00:15.1]}
30... Rxh2 {[%clk 0:00:50.3]} 31. Rce1 {[%clk 0:00:13.1]} 31... Rxc2 {[%clk
0:00:47]} 32. Rc3 {[%clk 0:00:13.3]} 32... Rxb2 {[%clk 0:00:43.7]} 33. Kg1
{[%clk 0:00:11.7]} 33... Rg2+ {[%clk 0:00:42.2]} 34. Kf1 {[%clk 0:00:12.1]}
34... Rxa2 {[%clk 0:00:42.8]} 35. Rb1 {[%clk 0:00:10.8]} 35... Rh2 {[%clk
0:00:37.1]} 36. Rbc1 {[%clk 0:00:09.8]} 36... Bd5 {[%clk 0:00:33.5]} 37. Ra3
{[%clk 0:00:08.8]} 37... Rh1+ {[%clk 0:00:32.9]} 0-1

[Event "Early-Titled-Tuesday-Blitz-January-30-2024"]
[Site "Chess.com"]
[Date "2024.01.30"]
[Round "4"]
[White "Licancabur"]
[Black "hmatyi07"]
[Result "1-0"]
[WhiteElo "2436"]
[BlackElo "2202"]
[TimeControl "180+1"]
[EndTime "8:40:43 PST"]
[Termination "Licancabur won on time"]

1. Nf3 {[%clk 0:03:00.9]} 1... Nf6 {[%clk 0:02:59.3]} 2. d4 {[%clk 0:02:57.5]}
2... e6 {[%clk 0:02:59.6]} 3. e3 {[%clk 0:02:51.2]} 3... d5 {[%clk 0:02:59.1]}
4. Bd3 {[%clk 0:02:48.2]} 4... c6 {[%clk 0:02:59.5]} 5. b3 {[%clk 0:02:47]} 5...
Bd6 {[%clk 0:02:59.4]} 6. Bb2 {[%clk 0:02:46.7]} 6... O-O {[%clk 0:02:58.4]} 7.
Qc1 {[%clk 0:02:46.2]} 7... b6 {[%clk 0:02:58.8]} 8. O-O {[%clk 0:02:45.5]} 8...
Bb7 {[%clk 0:02:59.2]} 9. c4 {[%clk 0:02:43.9]} 9... Nbd7 {[%clk 0:02:57.6]} 10.
Nc3 {[%clk 0:02:41.2]} 10... c5 {[%clk 0:02:51.2]} 11. cxd5 {[%clk 0:02:34]}
11... exd5 {[%clk 0:02:48.8]} 12. Nb5 {[%clk 0:02:22.4]} 12... Bb8 {[%clk
0:02:44.6]} 13. dxc5 {[%clk 0:02:07]} 13... bxc5 {[%clk 0:02:43.9]} 14. Qc2
{[%clk 0:01:47.8]} 14... Ne4 {[%clk 0:02:33]} 15. Rfd1 {[%clk 0:01:44.8]} 15...
Qe7 {[%clk 0:02:19.9]} 16. Nc3 {[%clk 0:01:38.9]} 16... Ndf6 {[%clk 0:02:16.7]}
17. Rac1 {[%clk 0:01:30.6]} 17... Ng4 {[%clk 0:02:02.5]} 18. Rf1 {[%clk
0:01:01.5]} 18... Nxc3 {[%clk 0:01:37.2]} 19. Qxc3 {[%clk 0:00:56.3]} 19... d4
{[%clk 0:01:34.4]} 20. Qxc5 {[%clk 0:00:53.7]} 20... Qxc5 {[%clk 0:01:14.7]} 21.
Rxc5 {[%clk 0:00:53.7]} 21... Bxf3 {[%clk 0:01:11.5]} 22. gxf3 {[%clk
0:00:46.8]} 22... Nxh2 {[%clk 0:01:07.8]} 23. Be4 {[%clk 0:00:26.3]} 23... Nxf1
{[%clk 0:00:50.3]} 24. Bxa8 {[%clk 0:00:26.1]} 24... Bd6 {[%clk 0:00:21.4]} 25.
Rd5 {[%clk 0:00:24.2]} 25... Nd2 {[%clk 0:00:09.3]} 26. Rxd6 {[%clk 0:00:21.6]}
26... Rxa8 {[%clk 0:00:09.8]} 27. Kg2 {[%clk 0:00:18.8]} 27... dxe3 {[%clk
0:00:02.9]} 28. fxe3 {[%clk 0:00:18.2]} 1-0

[Event "Early-Titled-Tuesday-Blitz-January-30-2024"]
[Site "Chess.com"]
[Date "2024.01.30"]
[Round "4"]
[White "IlanSchnaider"]
[Black "RCone"]
[Result "1-0"]
[WhiteElo "2657"]
[BlackElo "2413"]
[TimeControl "180+1"]
[EndTime "8:40:44 PST"]
[Termination "IlanSchnaider won by checkmate"]

1. e4 {[%clk 0:03:00.9]} 1... d6 {[%clk 0:02:56.3]} 2. d4 {[%clk 0:03:00.9]}
2... g6 {[%clk 0:02:54.6]} 3. Nc3 {[%clk 0:03:01.4]} 3... Nf6 {[%clk 0:02:53.9]}
4. f4 {[%clk 0:03:02.1]} 4... Bg7 {[%clk 0:02:53]} 5. Bd3 {[%clk 0:03:02.8]}
5... O-O {[%clk 0:02:52.2]} 6. Nf3 {[%clk 0:03:03.5]} 6... Na6 {[%clk 0:02:52]}
7. O-O {[%clk 0:03:03]} 7... c5 {[%clk 0:02:52.1]} 8. d5 {[%clk 0:03:03]} 8...
Bg4 {[%clk 0:02:50.3]} 9. Bxa6 {[%clk 0:02:39]} 9... bxa6 {[%clk 0:02:48]} 10.
h3 {[%clk 0:02:39.7]} 10... Bxf3 {[%clk 0:02:44.1]} 11. Qxf3 {[%clk 0:02:40.4]}
11... Rb8 {[%clk 0:02:43.1]} 12. Re1 {[%clk 0:02:33]} 12... Nd7 {[%clk
0:02:41.9]} 13. b3 {[%clk 0:02:26]} 13... c4 {[%clk 0:02:36.7]} 14. Bb2 {[%clk
0:02:20.3]} 14... Qc7 {[%clk 0:02:33.6]} 15. Rac1 {[%clk 0:02:08.3]} 15... Rfc8
{[%clk 0:02:15.1]} 16. Kh1 {[%clk 0:02:03.2]} 16... Qa5 {[%clk 0:02:10.2]} 17.
Qe3 {[%clk 0:01:06.4]} 17... Rc7 {[%clk 0:02:04.6]} 18. Na4 {[%clk 0:00:56]}
18... Bxb2 {[%clk 0:01:49.4]} 19. Nxb2 {[%clk 0:00:56.9]} 19... cxb3 {[%clk
0:01:26.6]} 20. axb3 {[%clk 0:00:55]} 20... Qc3 {[%clk 0:01:13.6]} 21. Nd3
{[%clk 0:00:42.8]} 21... Rbc8 {[%clk 0:01:03.1]} 22. e5 {[%clk 0:00:40.6]} 22...
Nc5 {[%clk 0:01:01.2]} 23. Kh2 {[%clk 0:00:23.9]} 23... Nxd3 {[%clk 0:00:37.7]}
24. cxd3 {[%clk 0:00:24.8]} 24... Qxb3 {[%clk 0:00:35.9]} 25. Rxc7 {[%clk
0:00:22.3]} 25... Rxc7 {[%clk 0:00:36.8]} 26. Qe4 {[%clk 0:00:19.8]} 26... Qc3
{[%clk 0:00:33]} 27. Rb1 {[%clk 0:00:18.6]} 27... Kg7 {[%clk 0:00:28.9]} 28. Rb8
{[%clk 0:00:15.7]} 28... a5 {[%clk 0:00:16.2]} 29. exd6 {[%clk 0:00:13.3]} 29...
exd6 {[%clk 0:00:16.9]} 30. Qe8 {[%clk 0:00:13.7]} 30... Kh6 {[%clk 0:00:15.7]}
31. Qf8+ {[%clk 0:00:13.6]} 31... Qg7 {[%clk 0:00:14.2]} 32. Qxd6 {[%clk
0:00:13.6]} 32... f5 {[%clk 0:00:14.4]} 33. Qd8 {[%clk 0:00:11.7]} 33... Rd7
{[%clk 0:00:13.8]} 34. Qh4# {[%clk 0:00:11.8]} 1-0

[Event "Early-Titled-Tuesday-Blitz-January-30-2024"]
[Site "Chess.com"]
[Date "2024.01.30"]
[Round "4"]
[White "Cheer_Down"]
[Black "GMT4114"]
[Result "1-0"]
[WhiteElo "2465"]
[BlackElo "1937"]
[TimeControl "180+1"]
[EndTime "8:40:45 PST"]
[Termination "Cheer_Down won on time"]

1. e4 {[%clk 0:03:00.9]} 1... e6 {[%clk 0:03:00.1]} 2. d4 {[%clk 0:03:00.4]}
2... d5 {[%clk 0:03:00.6]} 3. Nc3 {[%clk 0:03:00.8]} 3... Bb4 {[%clk 0:03:00]}
4. e5 {[%clk 0:03:00.4]} 4... Qd7 {[%clk 0:02:59.5]} 5. a3 {[%clk 0:02:55.9]}
5... Bxc3+ {[%clk 0:02:58]} 6. bxc3 {[%clk 0:02:56.8]} 6... b6 {[%clk
0:02:58.9]} 7. h4 {[%clk 0:02:56]} 7... Ba6 {[%clk 0:02:46.5]} 8. Bxa6 {[%clk
0:02:53.5]} 8... Nxa6 {[%clk 0:02:47.4]} 9. h5 {[%clk 0:02:53.8]} 9... h6 {[%clk
0:02:45.6]} 10. Qg4 {[%clk 0:02:52.2]} 10... f5 {[%clk 0:02:41]} 11. exf6 {[%clk
0:02:51.5]} 11... Nxf6 {[%clk 0:02:39]} 12. Qe2 {[%clk 0:02:49.9]} 12... Nb8
{[%clk 0:02:33.5]} 13. Nf3 {[%clk 0:02:44.4]} 13... Ne4 {[%clk 0:02:10.9]} 14.
c4 {[%clk 0:02:40]} 14... Nc6 {[%clk 0:01:52.2]} 15. cxd5 {[%clk 0:02:15.4]}
15... exd5 {[%clk 0:01:45.7]} 16. c4 {[%clk 0:02:15.7]} 16... O-O {[%clk
0:01:33.7]} 17. O-O {[%clk 0:02:06.5]} 17... Rae8 {[%clk 0:01:33.8]} 18. Be3
{[%clk 0:02:05.4]} 18... Qg4 {[%clk 0:01:23.6]} 19. cxd5 {[%clk 0:02:01.9]}
19... Ne7 {[%clk 0:01:20.2]} 20. Qc4 {[%clk 0:01:55.3]} 20... Kh8 {[%clk
0:01:03.3]} 21. Ne5 {[%clk 0:01:43.8]} 21... Qxh5 {[%clk 0:00:59.6]} 22. Qxc7
{[%clk 0:01:33.2]} 22... Nxd5 {[%clk 0:00:55.3]} 23. Qb7 {[%clk 0:01:31.1]}
23... Ndc3 {[%clk 0:00:34.6]} 24. Rfe1 {[%clk 0:01:22.2]} 24... Re6 {[%clk
0:00:11.4]} 25. Rac1 {[%clk 0:01:13.9]} 25... Ref6 {[%clk 0:00:10.6]} 26. Nd3
{[%clk 0:00:31.2]} 26... Rg6 {[%clk 0:00:03.5]} 27. Nf4 {[%clk 0:00:26.4]} 27...
Qf3 {[%clk 0:00:03.3]} 28. Nxg6+ {[%clk 0:00:20.4]} 1-0

[Event "Early-Titled-Tuesday-Blitz-January-30-2024"]
[Site "Chess.com"]
[Date "2024.01.30"]
[Round "4"]
[White "Jospem"]
[Black "Nemegejas"]
[Result "1-0"]
[WhiteElo "3055"]
[BlackElo "2858"]
[TimeControl "180+1"]
[EndTime "8:40:47 PST"]
[Termination "Jospem won on time"]

1. e4 {[%clk 0:03:00.9]} 1... c6 {[%clk 0:03:00.1]} 2. d4 {[%clk 0:03:01]} 2...
d5 {[%clk 0:03:00.6]} 3. e5 {[%clk 0:03:01.7]} 3... Bf5 {[%clk 0:02:56.4]} 4. h4
{[%clk 0:03:01.8]} 4... h5 {[%clk 0:02:56.5]} 5. Bd3 {[%clk 0:03:02]} 5... Bxd3
{[%clk 0:02:56.2]} 6. Qxd3 {[%clk 0:03:02.9]} 6... Qa5+ {[%clk 0:02:56.6]} 7. b4
{[%clk 0:03:03.2]} 7... Qa6 {[%clk 0:02:53.4]} 8. e6 {[%clk 0:03:03.3]} 8...
Qxd3 {[%clk 0:02:52.6]} 9. cxd3 {[%clk 0:03:04.2]} 9... f6 {[%clk 0:02:49.6]}
10. Nc3 {[%clk 0:03:00.2]} 10... Nh6 {[%clk 0:02:46.1]} 11. Bf4 {[%clk
0:02:52.2]} 11... Nf5 {[%clk 0:02:42.6]} 12. Nf3 {[%clk 0:02:52.4]} 12... g6
{[%clk 0:02:41.3]} 13. O-O {[%clk 0:02:52.1]} 13... Bh6 {[%clk 0:02:41.4]} 14.
Bxh6 {[%clk 0:02:48.9]} 14... Rxh6 {[%clk 0:02:39.5]} 15. b5 {[%clk 0:02:49.2]}
15... Ng7 {[%clk 0:02:19.7]} 16. Rfe1 {[%clk 0:02:44.4]} 16... Kd8 {[%clk
0:02:20.1]} 17. Rac1 {[%clk 0:02:32]} 17... Nf5 {[%clk 0:01:45.2]} 18. bxc6
{[%clk 0:02:21.5]} 18... bxc6 {[%clk 0:01:43.1]} 19. Na4 {[%clk 0:02:16.8]}
19... Kc7 {[%clk 0:01:16.3]} 20. Nc5 {[%clk 0:02:15.8]} 20... a5 {[%clk
0:01:09]} 21. Rb1 {[%clk 0:02:14.4]} 21... Rh8 {[%clk 0:01:00.8]} 22. Rb7+
{[%clk 0:02:03.6]} 22... Kd6 {[%clk 0:01:01.2]} 23. Nd7 {[%clk 0:01:41.1]} 23...
Rd8 {[%clk 0:00:31.7]} 24. Nde5 {[%clk 0:01:19.7]} 24... Rf8 {[%clk 0:00:23]}
25. Nxg6 {[%clk 0:00:50.2]} 25... Rg8 {[%clk 0:00:23.3]} 26. Nf4 {[%clk
0:00:45.9]} 26... Rg4 {[%clk 0:00:23.2]} 27. Nxh5 {[%clk 0:00:40.1]} 27... Nxd4
{[%clk 0:00:06]} 28. Nxd4 {[%clk 0:00:40.2]} 28... Rxd4 {[%clk 0:00:06.9]} 29.
Ng7 {[%clk 0:00:40.9]} 29... Rxd3 {[%clk 0:00:02.9]} 30. Nf5+ {[%clk 0:00:41.3]}
30... Kc5 {[%clk 0:00:03.1]} 31. Rxe7 {[%clk 0:00:42]} 31... Na6 {[%clk
0:00:03]} 32. Rf7 {[%clk 0:00:42.1]} 32... Re8 {[%clk 0:00:02.1]} 33. e7 {[%clk
0:00:42.5]} 33... Nc7 {[%clk 0:00:02.8]} 34. Ng7 {[%clk 0:00:42.4]} 34... Rg8
{[%clk 0:00:02.4]} 35. Ne6+ {[%clk 0:00:28.3]} 35... Nxe6 {[%clk 0:00:02.4]} 36.
Rxe6 {[%clk 0:00:29.2]} 36... Re8 {[%clk 0:00:02.3]} 37. Rf8 {[%clk 0:00:29.8]}
37... Rd1+ {[%clk 0:00:02.7]} 38. Kh2 {[%clk 0:00:30]} 1-0